[Event "FIDE Women World Blitz 2021"]
[Site "Warsaw"]
[Date "2021.12.29"]
[Round "3.7"]
[White "Kamalidenova, Meruert"]
[Black "Vaishali R"]
[Result "1/2-1/2"]
[ECO "B63"]
[WhiteElo "2339"]
[BlackElo "2405"]
[Annotator "NA"]
[PlyCount "147"]
[EventDate "2021.12.29"]
[EventType "swiss"]
[EventCountry "POL"]
[Tiebreak "Cut1 Buchholz"]
[SourceTitle "playchess.com"]
[Source "ChessBase"]
[SourceQuality "1"]
[TimeControl "180+2"]

1. e4 {[%emt 0:00:01]} c5 {[%emt 0:00:01]} 2. Nf3 {[%emt 0:00:02]} Nc6 {
[%emt 0:00:02]} 3. d4 {[%emt 0:00:03]} cxd4 {[%emt 0:00:01]} 4. Nxd4 {[%emt 0:
00:01]} Nf6 {[%emt 0:00:02]} 5. Nc3 {[%emt 0:00:01]} d6 {[%emt 0:00:01]} 6. Bg5
{[%emt 0:00:03]} e6 {[%emt 0:00:01]} 7. Qd2 {[%emt 0:00:08]} a6 {[%emt 0:00:02]
} 8. O-O-O {[%emt 0:00:03]} Be7 {[%emt 0:00:01]} 9. f3 {[%emt 0:00:29]} Nxd4 {
[%emt 0:00:21]} 10. Qxd4 {[%emt 0:00:05]} O-O {[%emt 0:00:02]} 11. h4 {[%emt 0:
00:12]} b5 {[%emt 0:00:04]} 12. Kb1 {[%emt 0:00:03]} Bb7 {[%emt 0:00:02]} 13.
g4 {[%emt 0:00:06]} Rc8 {[%emt 0:00:06]} 14. Qd2 {[%emt 0:00:14]} b4 {[%emt 0:
00:11]} 15. Na4 {[%emt 0:00:19]} Nxe4 {[%emt 0:01:10]} 16. fxe4 {[%emt 0:00:03]
} Bxe4 {[%emt 0:00:02]} 17. Bd3 {[%emt 0:00:02]} Bxh1 {[%emt 0:00:03]} 18. Rxh1
{[%emt 0:00:02]} a5 {[%emt 0:00:07]} 19. Be3 {[%emt 0:00:11]} d5 {[%emt 0:00:
06]} 20. g5 {[%emt 0:00:08]} Kh8 {[%emt 0:00:40]} 21. h5 {[%emt 0:00:14]} e5 {
[%emt 0:00:08]} 22. Bf5 {[%emt 0:00:07]} Rc6 {[%emt 0:00:06]} 23. Qg2 {[%emt 0:
00:09]} Qd6 {[%emt 0:00:17]} 24. Bc1 {[%emt 0:00:12]} e4 {[%emt 0:00:02]} 25.
b3 {[%emt 0:00:13]} Qe5 {[%emt 0:00:01]} 26. Rf1 {[%emt 0:00:13]} e3 {[%emt 0:
00:11]} 27. Bb2 {[%emt 0:00:06]} d4 {[%emt 0:00:02]} 28. Qxc6 {[%emt 0:00:06]}
e2 {[%emt 0:00:01]} 29. Re1 {[%emt 0:00:03]} Qxf5 {[%emt 0:00:02]} 30. Qc4 {
[%emt 0:00:10]} Bxg5 {[%emt 0:00:03]} 31. Qxe2 {[%emt 0:00:03]} Bf6 {[%emt 0:
00:01]} 32. Nb6 {[%emt 0:00:04]} h6 {[%emt 0:00:02]} 33. Nc4 {[%emt 0:00:02]}
a4 {[%emt 0:00:01]} 34. Rd1 {[%emt 0:00:03]} a3 {[%emt 0:00:02]} 35. Bxd4 {
[%emt 0:00:03]} Bxd4 {[%emt 0:00:04]} 36. Rxd4 {[%emt 0:00:01]} Qf6 {[%emt 0:
00:00]} 37. Rd1 {[%emt 0:00:03]} Rc8 {[%emt 0:00:02]} 38. Qe5 {[%emt 0:00:01]}
Qf3 {[%emt 0:00:03]} 39. Qd5 {[%emt 0:00:03]} Qc3 {[%emt 0:00:02]} 40. Qd4 {
[%emt 0:00:03]} Qf3 {[%emt 0:00:01]} 41. Nd6 {[%emt 0:00:03]} Rc7 {[%emt 0:00:
02]} 42. Re1 {[%emt 0:00:04]} Rd7 {[%emt 0:00:03]} 43. Re8+ {[%emt 0:00:03]}
Kh7 44. Re1 {[%emt 0:00:01]} f5 {[%emt 0:00:02]} 45. Qe5 {[%emt 0:00:02]} Rd8 {
[%emt 0:00:05]} 46. Qxf5+ Qxf5 {[%emt 0:00:01]} 47. Nxf5 {[%emt 0:00:02]} Rd5 {
[%emt 0:00:00]} 48. Ng3 {[%emt 0:00:03]} Rg5 {[%emt 0:00:01]} 49. Re3 {[%emt 0:
00:01]} g6 {[%emt 0:00:05]} 50. hxg6+ Kxg6 {[%emt 0:00:01]} 51. c3 {[%emt 0:00:
03]} bxc3 {[%emt 0:00:03]} 52. Rxc3 {[%emt 0:00:01]} h5 {[%emt 0:00:01]} 53.
Rc6+ {[%emt 0:00:01]} Kf7 {[%emt 0:00:01]} 54. Ne4 {[%emt 0:00:04]} Re5 {
[%emt 0:00:02]} 55. Rc4 {[%emt 0:00:03]} Ke6 {[%emt 0:00:01]} 56. Kc2 {[%emt 0:
00:01]} Rf5 {[%emt 0:00:02]} 57. Kd3 {[%emt 0:00:01]} Rf1 {[%emt 0:00:02]} 58.
Ra4 {[%emt 0:00:01]} h4 {[%emt 0:00:02]} 59. Rxa3 {[%emt 0:00:02]} h3 {[%emt 0:
00:01]} 60. Ng5+ {[%emt 0:00:01]} Kd5 {[%emt 0:00:01]} 61. Ra5+ {[%emt 0:00:02]
} Kc6 {[%emt 0:00:01]} 62. Nxh3 {[%emt 0:00:01]} Rf3+ {[%emt 0:00:01]} 63. Kc4
{[%emt 0:00:01]} Rxh3 {[%emt 0:00:01]} 64. Rg5 {[%emt 0:00:02]} Rh4+ {[%emt 0:
00:01]} 65. Kc3 {[%emt 0:00:01]} Rh3+ {[%emt 0:00:01]} 66. Kb4 {[%emt 0:00:03]}
Kb6 {[%emt 0:00:02]} 67. a4 {[%emt 0:00:01]} Rh4+ {[%emt 0:00:01]} 68. Ka3 {
[%emt 0:00:01]} Rh3 {[%emt 0:00:01]} 69. Rg6+ {[%emt 0:00:02]} Ka5 {[%emt 0:00:
01]} 70. Rf6 {[%emt 0:00:02]} Rxb3+ {[%emt 0:00:02]} 71. Ka2 {[%emt 0:00:08]}
Rb4 {[%emt 0:00:01]} 72. Ka3 {[%emt 0:00:01]} Rxa4+ {[%emt 0:00:01]} 73. Kb3 {
[%emt 0:00:01]} Rb4+ {[%emt 0:00:01]} 74. Ka3 {[%emt 0:00:00]} 1/2-1/2

[Event "FIDE Women World Blitz 2021"]
[Site "Warsaw"]
[Date "2021.12.29"]
[Round "3.7"]
[White "Gil Quilez, Sonia"]
[Black "Malicka, Maria"]
[Result "1-0"]
[ECO "E37"]
[WhiteElo "2122"]
[BlackElo "2307"]
[Annotator "NA"]
[PlyCount "77"]
[EventDate "2021.12.29"]
[EventType "swiss"]
[EventCountry "POL"]
[Tiebreak "Cut1 Buchholz"]
[SourceTitle "playchess.com"]
[Source "ChessBase"]
[SourceQuality "1"]
[TimeControl "180+2"]

1. d4 {[%emt 0:00:01]} Nf6 {[%emt 0:00:01]} 2. c4 {[%emt 0:00:01]} e6 {[%emt 0:
00:01]} 3. Nc3 {[%emt 0:00:01]} Bb4 {[%emt 0:00:01]} 4. Qc2 {[%emt 0:00:01]} d5
{[%emt 0:00:13]} 5. e3 {[%emt 0:00:00]} c5 {[%emt 0:00:22]} 6. Nf3 {[%emt 0:00:
01]} Nc6 {[%emt 0:00:07]} 7. a3 {[%emt 0:00:12]} Bxc3+ {[%emt 0:00:03]} 8. Qxc3
{[%emt 0:00:03]} O-O {[%emt 0:00:09]} 9. dxc5 {[%emt 0:00:39]} Ne4 {[%emt 0:00:
01]} 10. Qc2 {[%emt 0:00:01]} Qa5+ {[%emt 0:00:06]} 11. Nd2 {[%emt 0:00:09]}
Nxd2 {[%emt 0:00:38]} 12. Bxd2 {[%emt 0:00:03]} Qxc5 {[%emt 0:00:02]} 13. b4 {
[%emt 0:00:14]} Qb6 {[%emt 0:00:14]} 14. c5 {[%emt 0:00:09]} Qc7 {[%emt 0:00:
03]} 15. Bd3 {[%emt 0:00:05]} h6 {[%emt 0:00:09]} 16. Bc3 {[%emt 0:00:10]} e5 {
[%emt 0:00:04]} 17. O-O {[%emt 0:00:17]} Be6 {[%emt 0:00:03]} 18. Rad1 {
[%emt 0:00:15]} a5 {[%emt 0:00:05]} 19. b5 {[%emt 0:00:10]} Ne7 {[%emt 0:00:01]
} 20. Qb2 {[%emt 0:00:23]} f6 {[%emt 0:00:15]} 21. Rc1 {[%emt 0:00:09]} e4 {
[%emt 0:00:43]} 22. Be2 {[%emt 0:00:02]} Ng6 {[%emt 0:00:02]} 23. b6 {[%emt 0:
00:08]} Qd7 {[%emt 0:00:12]} 24. Bb5 {[%emt 0:00:02]} Qe7 {[%emt 0:00:00]} 25.
Bd4 {[%emt 0:00:05]} Bd7 {[%emt 0:00:01]} 26. c6 {[%emt 0:00:02]} bxc6 {
[%emt 0:00:02]} 27. Bxc6 {[%emt 0:00:01]} Bxc6 {[%emt 0:00:01]} 28. Rxc6 {
[%emt 0:00:00]} Rac8 {[%emt 0:00:03]} 29. Rfc1 {[%emt 0:00:03]} Qb7 {[%emt 0:
00:02]} 30. Rc7 {[%emt 0:00:03]} Qb8 {[%emt 0:00:05]} 31. Qb5 {[%emt 0:00:02]}
Ne5 {[%emt 0:00:04]} 32. Qxd5+ {[%emt 0:00:02]} Kh8 {[%emt 0:00:03]} 33. Bxe5 {
[%emt 0:00:02]} fxe5 {[%emt 0:00:01]} 34. Qd7 {[%emt 0:00:01]} Rxc7 {[%emt 0:
00:06]} 35. Rxc7 {[%emt 0:00:03]} Rg8 {[%emt 0:00:02]} 36. b7 {[%emt 0:00:02]}
a4 {[%emt 0:00:01]} 37. Rc8 {[%emt 0:00:01]} Qa7 {[%emt 0:00:07]} 38. Rxg8+ {
[%emt 0:00:03]} Kh7 {[%emt 0:00:02]} 39. Qxg7# {[%emt 0:00:01]} 1-0

[Event "FIDE Women World Blitz 2021"]
[Site "Warsaw"]
[Date "2021.12.29"]
[Round "3.8"]
[White "Shuvalova, Polina"]
[Black "Pavlidou, Ekaterini"]
[Result "1/2-1/2"]
[ECO "D02"]
[WhiteElo "2515"]
[BlackElo "2177"]
[Annotator "ChessBase"]
[PlyCount "189"]
[EventDate "2021.12.29"]
[EventType "swiss"]
[EventCountry "POL"]
[Tiebreak "Cut1 Buchholz"]
[SourceTitle "playchess.com"]
[Source "ChessBase"]
[SourceQuality "1"]
[TimeControl "180+2"]

1. d4 {[%emt 0:00:01]} Nf6 {[%emt 0:00:02]} 2. Nf3 {[%emt 0:00:02]} e6 {
[%emt 0:00:01]} 3. Bf4 {[%emt 0:00:05]} d5 {[%emt 0:00:04]} 4. e3 {[%emt 0:00:
01]} c5 {[%emt 0:00:03]} 5. Nbd2 {[%emt 0:00:03]} Nc6 {[%emt 0:00:01]} 6. c3 {
[%emt 0:00:02]} cxd4 {[%emt 0:00:03]} 7. exd4 {[%emt 0:00:03]} Nh5 {[%emt 0:00:
04]} 8. Be3 {[%emt 0:00:04]} Qc7 {[%emt 0:00:07]} 9. g3 {[%emt 0:00:03]} f5 {
[%emt 0:00:10]} 10. Ne5 {[%emt 0:00:07]} Nf6 {[%emt 0:00:11]} 11. Nxc6 {
[%emt 0:00:04]} bxc6 {[%emt 0:00:02]} 12. Bf4 {[%emt 0:00:07]} Bd6 {[%emt 0:00:
01]} 13. Bxd6 {[%emt 0:00:02]} Qxd6 {[%emt 0:00:01]} 14. Qe2 {[%emt 0:00:05]}
a5 {[%emt 0:00:05]} 15. Qe3 {[%emt 0:00:03]} O-O {[%emt 0:00:13]} 16. Bd3 {
[%emt 0:00:04]} f4 {[%emt 0:00:16]} 17. Qe2 {[%emt 0:00:12]} c5 {[%emt 0:00:16]
} 18. dxc5 {[%emt 0:00:14]} Qxc5 {[%emt 0:00:01]} 19. O-O {[%emt 0:00:05]} fxg3
{[%emt 0:00:13]} 20. hxg3 {[%emt 0:00:01]} Rb8 {[%emt 0:00:17]} 21. Nb3 {
[%emt 0:00:02]} Qd6 {[%emt 0:00:00]} 22. Rfe1 {[%emt 0:00:06]} a4 {[%emt 0:00:
05]} 23. Nd4 {[%emt 0:00:02]} Ne4 {[%emt 0:00:13]} 24. Bxe4 {[%emt 0:00:14]}
dxe4 {[%emt 0:00:02]} 25. Rad1 {[%emt 0:00:07]} e5 {[%emt 0:00:11]} 26. Nc2 {
[%emt 0:00:14]} Qb6 {[%emt 0:00:05]} 27. Nb4 {[%emt 0:00:04]} h5 {[%emt 0:00:
27]} 28. Qe3 {[%emt 0:00:04]} h4 {[%emt 0:00:11]} 29. Qxb6 {[%emt 0:00:29]}
Rxb6 {[%emt 0:00:01]} 30. Rxe4 {[%emt 0:00:02]} hxg3 {[%emt 0:00:08]} 31. fxg3
{[%emt 0:00:01]} Rg6 {[%emt 0:00:02]} 32. Re3 {[%emt 0:00:04]} Bb7 {[%emt 0:00:
19]} 33. Rf1 {[%emt 0:00:01]} Rd8 {[%emt 0:00:02]} 34. c4 {[%emt 0:00:40]} Rh6
{[%emt 0:00:07]} 35. Nd5 {[%emt 0:00:02]} Bxd5 {[%emt 0:00:03]} 36. cxd5 {
[%emt 0:00:02]} Rxd5 {[%emt 0:00:01]} 37. Rf2 {[%emt 0:00:03]} Rd1+ {[%emt 0:
00:00]} 38. Kg2 {[%emt 0:00:02]} Rhh1 {[%emt 0:00:01]} 39. Kf3 {[%emt 0:00:09]}
Ra1 {[%emt 0:00:03]} 40. a3 {[%emt 0:00:01]} Rh5 {[%emt 0:00:01]} 41. Ke4 {
[%emt 0:00:04]} Rg5 {[%emt 0:00:02]} 42. Rf5 {[%emt 0:00:08]} Rg4+ {[%emt 0:00:
00]} 43. Kf3 {[%emt 0:00:03]} Rd4 {[%emt 0:00:02]} 44. Rfxe5 {[%emt 0:00:03]}
Rf1+ {[%emt 0:00:02]} 45. Kg2 {[%emt 0:00:02]} Rb1 {[%emt 0:00:01]} 46. Re2 {
[%emt 0:00:01]} Kh7 {[%emt 0:00:03]} 47. Kf3 {[%emt 0:00:02]} Rd3+ {[%emt 0:00:
00]} 48. R5e3 {[%emt 0:00:00]} Rd4 {[%emt 0:00:00]} 49. Rc3 {[%emt 0:00:07]}
Rf1+ {[%emt 0:00:02]} 50. Ke3 {[%emt 0:00:01]} Rd7 {[%emt 0:00:02]} 51. Rd3 {
[%emt 0:00:02]} Re7+ {[%emt 0:00:02]} 52. Kd2 {[%emt 0:00:02]} Rb7 {[%emt 0:00:
00]} 53. Kc2 {[%emt 0:00:04]} Rf6 {[%emt 0:00:01]} 54. Rc3 {[%emt 0:00:03]}
Rfb6 {[%emt 0:00:01]} 55. b4 {[%emt 0:00:05]} axb3+ {[%emt 0:00:01]} 56. Kb2
Rb8 {[%emt 0:00:04]} 57. Ree3 {[%emt 0:00:03]} Rf8 {[%emt 0:00:01]} 58. Rxb3 {
[%emt 0:00:02]} Rf2+ {[%emt 0:00:01]} 59. Kc3 {[%emt 0:00:01]} Rc6+ {[%emt 0:
00:00]} 60. Kb4 {[%emt 0:00:01]} Rb6+ {[%emt 0:00:01]} 61. Kc5 {[%emt 0:00:02]}
Ra6 {[%emt 0:00:01]} 62. Kb5 {[%emt 0:00:02]} Ra8 {[%emt 0:00:01]} 63. Rec3 {
[%emt 0:00:06]} Rb8+ {[%emt 0:00:04]} 64. Kc6 {[%emt 0:00:02]} Rc8+ {[%emt 0:
00:01]} 65. Kb7 {[%emt 0:00:02]} Re8 {[%emt 0:00:02]} 66. a4 {[%emt 0:00:02]}
Re4 {[%emt 0:00:01]} 67. a5 {[%emt 0:00:02]} Rf6 {[%emt 0:00:10]} 68. Rb6 {
[%emt 0:00:02]} Rf7+ {[%emt 0:00:03]} 69. Rc7 {[%emt 0:00:01]} Rf8 {[%emt 0:00:
01]} 70. a6 {[%emt 0:00:01]} Ra4 {[%emt 0:00:01]} 71. a7 {[%emt 0:00:01]} Ra3 {
[%emt 0:00:03]} 72. Ra6 {[%emt 0:00:02]} Rb3+ {[%emt 0:00:01]} 73. Rb6 {
[%emt 0:00:02]} Ra3 {[%emt 0:00:01]} 74. Rd7 {[%emt 0:00:02]} Ra4 {[%emt 0:00:
05]} 75. Kc6 {[%emt 0:00:02]} Rc8+ {[%emt 0:00:03]} 76. Kb5 {[%emt 0:00:02]}
Rac4 {[%emt 0:00:03]} 77. Ka6 {[%emt 0:00:05]} Ra4+ {[%emt 0:00:03]} 78. Kb7 {
[%emt 0:00:01]} Re8 {[%emt 0:00:00]} 79. Rc6 {[%emt 0:00:02]} Rb4+ {[%emt 0:00:
02]} 80. Kc7 {[%emt 0:00:01]} Ra8 {[%emt 0:00:02]} 81. Kd6 {[%emt 0:00:06]} Ra4
{[%emt 0:00:01]} 82. Rcc7 {[%emt 0:00:01]} Ra6+ {[%emt 0:00:03]} 83. Kc5 {
[%emt 0:00:01]} Ra5+ {[%emt 0:00:00]} 84. Kb6 {[%emt 0:00:01]} Ra3 {[%emt 0:00:
06]} 85. Rxg7+ {[%emt 0:00:01]} Kh6 {[%emt 0:00:01]} 86. Kb5 {[%emt 0:00:04]}
Rb3+ {[%emt 0:00:02]} 87. Ka4 {[%emt 0:00:01]} Rb1 {[%emt 0:00:01]} 88. Ka5 {
[%emt 0:00:04]} Rb2 {[%emt 0:00:05]} 89. g4 {[%emt 0:00:01]} Rxa7+ {[%emt 0:00:
05]} 90. Rxa7 {[%emt 0:00:02]} Rb5+ {[%emt 0:00:01]} 91. Ka4 {[%emt 0:00:05]}
Rb4+ {[%emt 0:00:01]} 92. Ka3 {[%emt 0:00:01]} Rb3+ {[%emt 0:00:00]} 93. Ka2 {
[%emt 0:00:01]} Rb2+ {[%emt 0:00:01]} 94. Ka3 {[%emt 0:00:03]} Rb3+ {[%emt 0:
00:00]} 95. Kxb3 {[%emt 0:00:02]} 1/2-1/2

[Event "FIDE Women World Blitz 2021"]
[Site "Warsaw"]
[Date "2021.12.29"]
[Round "3.8"]
[White "Ovod, Evgenija"]
[Black "Rudzinska, Michalina"]
[Result "1-0"]
[ECO "B50"]
[WhiteElo "2366"]
[BlackElo "1832"]
[Annotator "NA"]
[PlyCount "61"]
[EventDate "2021.12.29"]
[EventType "swiss"]
[EventCountry "POL"]
[Tiebreak "Cut1 Buchholz"]
[SourceTitle "playchess.com"]
[Source "ChessBase"]
[SourceQuality "1"]
[TimeControl "180+2"]

1. e4 {[%emt 0:00:00]} c5 {[%emt 0:00:01]} 2. Nf3 {[%emt 0:00:03]} d6 {[%emt 0:
00:01]} 3. c3 {[%emt 0:00:06]} Nf6 {[%emt 0:00:03]} 4. Bd3 {[%emt 0:00:02]} e5
{[%emt 0:00:02]} 5. O-O {[%emt 0:00:03]} Nc6 {[%emt 0:00:02]} 6. Bc2 {[%emt 0:
00:02]} Be7 {[%emt 0:00:01]} 7. d4 {[%emt 0:00:09]} cxd4 {[%emt 0:00:03]} 8.
cxd4 {[%emt 0:00:01]} Bg4 {[%emt 0:00:08]} 9. d5 {[%emt 0:00:13]} Nd4 {[%emt 0:
00:02]} 10. Nbd2 {[%emt 0:00:16]} Rc8 {[%emt 0:00:12]} 11. Bd3 {[%emt 0:00:10]}
Nh5 {[%emt 0:00:08]} 12. Qa4+ {[%emt 0:00:23]} Bd7 {[%emt 0:00:06]} 13. Qxa7 {
[%emt 0:00:11]} Nf4 {[%emt 0:00:10]} 14. Nxd4 {[%emt 0:00:22]} exd4 {[%emt 0:
00:18]} 15. Qxd4 {[%emt 0:00:10]} Bf6 {[%emt 0:00:09]} 16. Qe3 {[%emt 0:00:06]}
Be5 {[%emt 0:00:12]} 17. Nf3 {[%emt 0:00:12]} O-O {[%emt 0:00:23]} 18. Nxe5 {
[%emt 0:00:15]} dxe5 {[%emt 0:00:01]} 19. Bd2 {[%emt 0:00:21]} Qf6 {[%emt 0:00:
38]} 20. Rfc1 {[%emt 0:00:12]} h5 {[%emt 0:00:05]} 21. Bf1 {[%emt 0:00:03]} h4
{[%emt 0:00:07]} 22. Rxc8 {[%emt 0:00:04]} Rxc8 {[%emt 0:00:02]} 23. Rc1 {
[%emt 0:00:02]} Ra8 {[%emt 0:00:11]} 24. a3 {[%emt 0:00:02]} Qg6 {[%emt 0:00:
04]} 25. g3 {[%emt 0:00:03]} Ra4 {[%emt 0:00:03]} 26. Rc4 {[%emt 0:00:10]} Rxc4
{[%emt 0:00:14]} 27. Bxc4 {[%emt 0:00:01]} Qg4 {[%emt 0:00:06]} 28. f3 {
[%emt 0:00:12]} Qg6 {[%emt 0:00:11]} 29. g4 {[%emt 0:00:03]} h3 {[%emt 0:00:06]
} 30. Kf2 {[%emt 0:00:02]} Qf6 {[%emt 0:00:03]} 31. Ke1 {[%emt 0:00:01]} 1-0

[Event "FIDE Women World Blitz 2021"]
[Site "Warsaw"]
[Date "2021.12.29"]
[Round "3.9"]
[White "Danielian, Elina"]
[Black "Balajayeva, Khanim"]
[Result "1/2-1/2"]
[ECO "D00"]
[WhiteElo "2450"]
[BlackElo "2369"]
[Annotator "ChessBase"]
[PlyCount "101"]
[EventDate "2021.12.29"]
[EventType "swiss"]
[EventCountry "POL"]
[Tiebreak "Cut1 Buchholz"]
[SourceTitle "playchess.com"]
[Source "ChessBase"]
[SourceQuality "1"]
[TimeControl "180+2"]

1. d4 {[%emt 0:00:02]} Nf6 {[%emt 0:00:00]} 2. Bg5 {[%emt 0:00:01]} d5 {
[%emt 0:00:03]} 3. Bxf6 {[%emt 0:00:03]} exf6 {[%emt 0:00:01]} 4. e3 {[%emt 0:
00:01]} Bd6 {[%emt 0:00:02]} 5. g3 {[%emt 0:00:02]} O-O {[%emt 0:00:02]} 6. Bg2
{[%emt 0:00:01]} c6 {[%emt 0:00:04]} 7. Ne2 {[%emt 0:00:01]} Nd7 {[%emt 0:00:
01]} 8. O-O {[%emt 0:00:03]} f5 {[%emt 0:00:02]} 9. b3 {[%emt 0:00:01]} Nf6 {
[%emt 0:00:06]} 10. c4 {[%emt 0:00:01]} dxc4 11. bxc4 {[%emt 0:00:01]} Re8 {
[%emt 0:00:26]} 12. Nbc3 {[%emt 0:00:03]} Qc7 {[%emt 0:00:28]} 13. Rb1 {
[%emt 0:00:37]} Bd7 {[%emt 0:00:09]} 14. c5 {[%emt 0:00:41]} Bf8 {[%emt 0:00:
01]} 15. Qc2 {[%emt 0:00:07]} b6 {[%emt 0:00:11]} 16. cxb6 {[%emt 0:00:14]}
axb6 {[%emt 0:00:02]} 17. Rfc1 {[%emt 0:00:04]} Qa7 {[%emt 0:00:13]} 18. Qb3 {
[%emt 0:00:16]} b5 {[%emt 0:00:43]} 19. d5 {[%emt 0:00:12]} c5 {[%emt 0:00:00]}
20. Nxb5 {[%emt 0:00:11]} Bxb5 {[%emt 0:00:21]} 21. Qxb5 {[%emt 0:00:02]} Qxa2
{[%emt 0:00:14]} 22. Nc3 {[%emt 0:00:29]} Qa7 {[%emt 0:00:01]} 23. Qc4 {
[%emt 0:00:04]} Rad8 {[%emt 0:00:06]} 24. Bf3 {[%emt 0:00:07]} g6 {[%emt 0:00:
04]} 25. h4 {[%emt 0:00:03]} Nd7 {[%emt 0:00:04]} 26. Bg2 {[%emt 0:00:12]} Ne5
{[%emt 0:00:02]} 27. Qe2 {[%emt 0:00:05]} c4 {[%emt 0:00:04]} 28. Nb5 {[%emt 0:
00:03]} Qc5 {[%emt 0:00:02]} 29. Nd4 {[%emt 0:00:03]} Bg7 {[%emt 0:00:05]} 30.
Rb7 {[%emt 0:00:07]} Rb8 {[%emt 0:00:07]} 31. Qb2 {[%emt 0:00:03]} Rxb7 {
[%emt 0:00:06]} 32. Qxb7 {[%emt 0:00:01]} Nd3 {[%emt 0:00:02]} 33. Rc2 {
[%emt 0:00:01]} Bxd4 {[%emt 0:00:02]} 34. exd4 {[%emt 0:00:01]} Qxd4 {[%emt 0:
00:01]} 35. d6 {[%emt 0:00:01]} Qxd6 {[%emt 0:00:06]} 36. Bd5 {[%emt 0:00:01]}
Rf8 {[%emt 0:00:02]} 37. Rxc4 {[%emt 0:00:01]} Qe5 {[%emt 0:00:02]} 38. Kg2 {
[%emt 0:00:03]} Ne1+ {[%emt 0:00:01]} 39. Kf1 {[%emt 0:00:01]} Nd3 {[%emt 0:00:
01]} 40. Kg2 {[%emt 0:00:01]} f4 {[%emt 0:00:02]} 41. Rc7 {[%emt 0:00:03]} Qf6
{[%emt 0:00:06]} 42. g4 {[%emt 0:00:02]} Ne5 {[%emt 0:00:01]} 43. g5 {[%emt 0:
00:01]} f3+ {[%emt 0:00:01]} 44. Bxf3 {[%emt 0:00:03]} Qf4 {[%emt 0:00:01]} 45.
Qe4 {[%emt 0:00:04]} Qxf3+ 46. Qxf3 {[%emt 0:00:01]} Nxf3 {[%emt 0:00:04]} 47.
Kxf3 {[%emt 0:00:02]} Kg7 {[%emt 0:00:00]} 48. Kg4 {[%emt 0:00:00]} Ra8 {
[%emt 0:00:01]} 49. f4 {[%emt 0:00:02]} Ra4 {[%emt 0:00:01]} 50. Rb7 {[%emt 0:
00:02]} Rc4 {[%emt 0:00:01]} 51. Ra7 {[%emt 0:00:01]} 1/2-1/2

[Event "FIDE Women World Blitz 2021"]
[Site "Warsaw"]
[Date "2021.12.29"]
[Round "3.9"]
[White "Wikar, Martyna"]
[Black "Heredia Serrano, Carla"]
[Result "1-0"]
[ECO "B19"]
[WhiteElo "1899"]
[BlackElo "2138"]
[Annotator "NA"]
[PlyCount "118"]
[EventDate "2021.12.29"]
[EventType "swiss"]
[EventCountry "POL"]
[Tiebreak "Cut1 Buchholz"]
[SourceTitle "playchess.com"]
[Source "ChessBase"]
[SourceQuality "1"]
[TimeControl "180+2"]

1. e4 {[%emt 0:00:02]} c6 {[%emt 0:00:00]} 2. d4 {[%emt 0:00:03]} d5 {[%emt 0:
00:01]} 3. Nc3 {[%emt 0:00:01]} dxe4 {[%emt 0:00:01]} 4. Nxe4 {[%emt 0:00:01]}
Bf5 {[%emt 0:00:01]} 5. Ng3 {[%emt 0:00:02]} Bg6 {[%emt 0:00:01]} 6. Nf3 {
[%emt 0:00:04]} Nd7 {[%emt 0:00:01]} 7. h4 {[%emt 0:00:02]} h6 {[%emt 0:00:01]}
8. h5 {[%emt 0:00:00]} Bh7 {[%emt 0:00:00]} 9. Bd3 {[%emt 0:00:01]} Bxd3 {
[%emt 0:00:02]} 10. Qxd3 {[%emt 0:00:02]} e6 {[%emt 0:00:01]} 11. Bd2 {[%emt 0:
00:05]} Ngf6 {[%emt 0:00:01]} 12. O-O-O {[%emt 0:00:04]} Be7 {[%emt 0:00:01]}
13. c4 {[%emt 0:00:05]} O-O {[%emt 0:00:13]} 14. Kb1 {[%emt 0:00:01]} b5 {
[%emt 0:00:03]} 15. cxb5 {[%emt 0:00:15]} cxb5 {[%emt 0:00:01]} 16. Ne4 {
[%emt 0:00:08]} Nxe4 {[%emt 0:00:21]} 17. Qxe4 {[%emt 0:00:02]} Nf6 {[%emt 0:
00:02]} 18. Qe2 {[%emt 0:00:10]} Qd5 {[%emt 0:00:20]} 19. Rh3 {[%emt 0:00:18]}
Rac8 {[%emt 0:00:32]} 20. Ne5 {[%emt 0:00:17]} Qxd4 {[%emt 0:00:16]} 21. Bxh6 {
[%emt 0:00:07]} Qe4+ {[%emt 0:00:05]} 22. Qxe4 {[%emt 0:00:04]} Nxe4 {[%emt 0:
00:01]} 23. Be3 {[%emt 0:00:04]} a5 {[%emt 0:00:44]} 24. h6 {[%emt 0:00:04]}
gxh6 {[%emt 0:00:24]} 25. Rdh1 {[%emt 0:00:20]} Rfd8 {[%emt 0:00:14]} 26. Rxh6
{[%emt 0:00:08]} Bf6 {[%emt 0:00:01]} 27. Ng4 {[%emt 0:00:15]} Bg7 {[%emt 0:00:
05]} 28. R6h5 {[%emt 0:00:03]} Nd2+ {[%emt 0:00:12]} 29. Bxd2 {[%emt 0:00:08]}
Rxd2 {[%emt 0:00:01]} 30. Rxb5 {[%emt 0:00:04]} a4 {[%emt 0:00:05]} 31. a3 {
[%emt 0:00:08]} f5 {[%emt 0:00:06]} 32. Nh6+ {[%emt 0:00:09]} Bxh6 {[%emt 0:00:
03]} 33. Rxh6 {[%emt 0:00:02]} Rxf2 {[%emt 0:00:01]} 34. Rxe6 {[%emt 0:00:07]}
Rf1+ {[%emt 0:00:05]} 35. Ka2 {[%emt 0:00:02]} Rf2 {[%emt 0:00:01]} 36. Rg6+ {
[%emt 0:00:02]} Kf7 {[%emt 0:00:01]} 37. Rg5 {[%emt 0:00:08]} f4 {[%emt 0:00:
01]} 38. Rb4 {[%emt 0:00:07]} Rcc2 {[%emt 0:00:03]} 39. Rf5+ {[%emt 0:00:05]}
Ke6 {[%emt 0:00:01]} 40. Rfxf4 {[%emt 0:00:02]} Rxf4 {[%emt 0:00:03]} 41. Rxf4
{[%emt 0:00:01]} Rxg2 {[%emt 0:00:01]} 42. Rxa4 {[%emt 0:00:02]} Kd5 43. Rf4 {
[%emt 0:00:03]} Kc5 {[%emt 0:00:01]} 44. Rf3 {[%emt 0:00:02]} Kb5 {[%emt 0:00:
01]} 45. Kb3 {[%emt 0:00:02]} Ka5 {[%emt 0:00:01]} 46. Rf5+ {[%emt 0:00:03]}
Kb6 {[%emt 0:00:01]} 47. Kc3 {[%emt 0:00:02]} Rg3+ {[%emt 0:00:01]} 48. Kb4 {
[%emt 0:00:01]} Rg4+ {[%emt 0:00:01]} 49. Kb3 {[%emt 0:00:01]} Rg3+ {[%emt 0:
00:01]} 50. Ka4 {[%emt 0:00:01]} Ka6 {[%emt 0:00:02]} 51. Rf6+ {[%emt 0:00:02]}
Kb7 {[%emt 0:00:01]} 52. b4 {[%emt 0:00:01]} Rg5 {[%emt 0:00:01]} 53. b5 {
[%emt 0:00:03]} Ka7 {[%emt 0:00:01]} 54. Ka5 {[%emt 0:00:01]} Ka8 {[%emt 0:00:
03]} 55. Rf7 {[%emt 0:00:03]} Rg6 {[%emt 0:00:02]} 56. a4 {[%emt 0:00:01]} Kb8
{[%emt 0:00:06]} 57. b6 {[%emt 0:00:02]} Rg4 {[%emt 0:00:10]} 58. Kb5 {[%emt 0:
00:07]} Rg5+ {[%emt 0:00:01]} 59. Ka6 {[%emt 0:00:01]} Ka8 {[%emt 0:00:07]} 1-0